[Event "Titled Tuesday Blitz October 04 Early 2022"]
[White "Papasimakopoulos, Alexandros"]
[Black "Tin, Jingyao"]
[WhiteFideId "4244125"]
[BlackFideId "5804418"]
[WhiteElo "2357"]
[BlackElo "2462"]
[Result "1-0"]
[Round "09"]
[TimeControl "180+1"]
[Date "2022.10.04"]
[WhiteClock "0:00:47"]
[BlackClock "0:00:01"]

1. d4 {[%clk 0:02:58]}  d5 {[%clk 0:02:59]} 2. c4 {[%clk 0:02:58]}  c6 {[%clk 0:02:59]} 3. cxd5 {[%clk 0:02:58]}  cxd5 {[%clk 0:03:00]} 4. Bf4 {[%clk 0:02:59]}  Nf6 {[%clk 0:03:01]} 5. Nc3 {[%clk 0:02:59]}  Nc6 {[%clk 0:03:01]} 6. e3 {[%clk 0:03:00]}  Bf5 {[%clk 0:03:01]} 7. Qb3 {[%clk 0:02:59]}  Na5 {[%clk 0:03:02]} 8. Qa4+ {[%clk 0:03:00]}  Bd7 {[%clk 0:03:02]} 9. Qc2 {[%clk 0:03:00]}  e6 {[%clk 0:03:02]} 10. Nf3 {[%clk 0:03:00]}  Be7 {[%clk 0:03:01]} 11. h3 {[%clk 0:03:00]}  O-O {[%clk 0:03:01]} 12. Bd3 {[%clk 0:03:00]}  Rc8 {[%clk 0:03:00]} 13. O-O {[%clk 0:02:59]}  h6 {[%clk 0:02:55]} 14. Ne5 {[%clk 0:02:59]}  Be8 {[%clk 0:02:53]} 15. Qe2 {[%clk 0:02:59]}  Nd7 {[%clk 0:02:52]} 16. Rac1 {[%clk 0:02:44]}  Nxe5 {[%clk 0:02:49]} 17. Bxe5 {[%clk 0:02:45]}  Nc4 {[%clk 0:02:45]} 18. Bg3 {[%clk 0:02:41]}  Qa5 {[%clk 0:02:35]} 19. e4 {[%clk 0:02:35]}  Nb6 {[%clk 0:02:27]} 20. exd5 {[%clk 0:02:28]}  Bd7 {[%clk 0:02:09]} 21. dxe6 {[%clk 0:02:02]}  Bxe6 {[%clk 0:02:10]} 22. Qe4 {[%clk 0:02:02]}  g6 {[%clk 0:02:08]} 23. Qxb7 {[%clk 0:02:00]}  Bf6 {[%clk 0:02:04]} 24. Be5 {[%clk 0:01:56]}  Bxe5 {[%clk 0:01:57]} 25. dxe5 {[%clk 0:01:57]}  Qxe5 {[%clk 0:01:38]} 26. Qxa7 {[%clk 0:01:57]}  Nc4 {[%clk 0:01:21]} 27. Rfe1 {[%clk 0:01:50]}  Qg7 {[%clk 0:01:09]} 28. Bxc4 {[%clk 0:01:46]}  Rxc4 {[%clk 0:01:08]} 29. Qa6 {[%clk 0:01:40]}  Rfc8 {[%clk 0:01:06]} 30. Rcd1 {[%clk 0:01:37]}  Kh7 {[%clk 0:00:26]} 31. Rd2 {[%clk 0:01:30]}  Qf6 {[%clk 0:00:23]} 32. Qb5 {[%clk 0:01:27]}  R8c5 {[%clk 0:00:20]} 33. Qb8 {[%clk 0:01:24]}  Bxh3 {[%clk 0:00:18]} 34. Ne4 {[%clk 0:01:05]}  Rxe4 {[%clk 0:00:11]} 35. Rxe4 {[%clk 0:01:06]}  Bxg2 {[%clk 0:00:08]} 36. Qf4 {[%clk 0:01:01]}  Qxf4 {[%clk 0:00:03]} 37. Rxf4 {[%clk 0:01:01]}  Bd5 {[%clk 0:00:04]} 38. b4 {[%clk 0:00:54]}  Rc1+ {[%clk 0:00:03]} 39. Kh2 {[%clk 0:00:54]}  Be6 {[%clk 0:00:02]} 40. Re4 {[%clk 0:00:50]}  g5 {[%clk 0:00:01]} 41. Rb2 {[%clk 0:00:48]}  h5 {[%clk 0:00:01]} 42. Rxe6 {[%clk 0:00:46]}  fxe6 {[%clk 0:00:01]} 43. b5 {[%clk 0:00:47]} 1-0


[Site "https://www.chess.com"]

[Event "Titled Tuesday Blitz October 04 Early 2022"]
[White "Rohith Krishna S"]
[Black "Girel, Joseph"]
[WhiteFideId "46617051"]
[BlackFideId "36033561"]
[WhiteElo "2270"]
[BlackElo "2281"]
[Result "1-0"]
[Round "09"]
[TimeControl "180+1"]
[Date "2022.10.04"]
[WhiteClock "0:01:38"]
[BlackClock "0:01:52"]

1. Nf3 {[%clk 0:03:00]}  b6 {[%clk 0:02:59]} 2. g3 {[%clk 0:03:01]}  Bb7 {[%clk 0:02:59]} 3. Bg2 {[%clk 0:03:01]}  Nf6 {[%clk 0:02:59]} 4. O-O {[%clk 0:03:02]}  g6 {[%clk 0:03:00]} 5. d3 {[%clk 0:03:02]}  Bg7 {[%clk 0:02:54]} 6. e4 {[%clk 0:03:03]}  O-O {[%clk 0:02:53]} 7. e5 {[%clk 0:03:02]}  Ne8 {[%clk 0:02:52]} 8. d4 {[%clk 0:03:02]}  d6 {[%clk 0:02:53]} 9. exd6 {[%clk 0:03:02]}  Nxd6 {[%clk 0:02:51]} 10. c3 {[%clk 0:02:59]}  Nd7 {[%clk 0:02:51]} 11. h4 {[%clk 0:02:56]}  c5 {[%clk 0:02:50]} 12. h5 {[%clk 0:02:56]}  cxd4 {[%clk 0:02:49]} 13. cxd4 {[%clk 0:02:55]}  Rc8 {[%clk 0:02:44]} 14. Nc3 {[%clk 0:02:54]}  Nf6 {[%clk 0:02:43]} 15. hxg6 {[%clk 0:02:47]}  hxg6 {[%clk 0:02:42]} 16. Bf4 {[%clk 0:02:41]}  Nf5 {[%clk 0:02:41]} 17. Be5 {[%clk 0:02:41]}  Nd5 {[%clk 0:02:39]} 18. Rc1 {[%clk 0:02:32]}  Qd7 {[%clk 0:02:35]} 19. Qe2 {[%clk 0:02:23]}  f6 {[%clk 0:02:29]} 20. Nxd5 {[%clk 0:02:14]}  Bxd5 {[%clk 0:02:27]} 21. Bf4 {[%clk 0:02:14]}  g5 {[%clk 0:02:26]} 22. Be3 {[%clk 0:02:13]}  Qb7 {[%clk 0:02:25]} 23. Rfd1 {[%clk 0:02:09]}  e6 {[%clk 0:02:21]} 24. Ne1 {[%clk 0:01:50]}  Bxg2 {[%clk 0:02:18]} 25. Nxg2 {[%clk 0:01:51]}  Qd5 {[%clk 0:02:18]} 26. Qa6 {[%clk 0:01:48]}  Rxc1 {[%clk 0:02:11]} 27. Rxc1 {[%clk 0:01:49]}  Rf7 {[%clk 0:02:06]} 28. b3 {[%clk 0:01:42]}  Kf8 {[%clk 0:02:02]} 29. Qc8+ {[%clk 0:01:37]}  Ke7 {[%clk 0:01:53]} 30. Rc7+ {[%clk 0:01:37]}  Kd6 {[%clk 0:01:52]} 31. Qd8+ {[%clk 0:01:38]} 1-0


[Site "https://www.chess.com"]

[Event "Titled Tuesday Blitz October 04 Early 2022"]
[White "Saydaliev, Saidakbar"]
[Black "Svane, Rasmus"]
[WhiteFideId "14203693"]
[BlackFideId "4657101"]
[WhiteElo "2276"]
[BlackElo "2674"]
[Result "0-1"]
[Round "09"]
[TimeControl "180+1"]
[Date "2022.10.04"]
[WhiteClock "0:00:02"]
[BlackClock "0:00:04"]

1. e4 {[%clk 0:03:00]}  c6 {[%clk 0:02:58]} 2. Nf3 {[%clk 0:02:58]}  d5 {[%clk 0:02:58]} 3. Nc3 {[%clk 0:02:59]}  dxe4 {[%clk 0:02:59]} 4. Nxe4 {[%clk 0:02:59]}  Nf6 {[%clk 0:02:59]} 5. Qe2 {[%clk 0:02:59]}  Nxe4 {[%clk 0:02:59]} 6. Qxe4 {[%clk 0:02:59]}  Qa5 {[%clk 0:03:00]} 7. Bc4 {[%clk 0:02:58]}  Bf5 {[%clk 0:03:00]} 8. Qf4 {[%clk 0:02:54]}  e6 {[%clk 0:03:00]} 9. c3 {[%clk 0:02:52]}  Qd8 {[%clk 0:02:56]} 10. d4 {[%clk 0:02:51]}  Bd6 {[%clk 0:02:56]} 11. Qe3 {[%clk 0:02:42]}  Nd7 {[%clk 0:02:56]} 12. O-O {[%clk 0:02:41]}  O-O {[%clk 0:02:57]} 13. h3 {[%clk 0:02:37]}  Qc7 {[%clk 0:02:52]} 14. Qe2 {[%clk 0:02:34]}  c5 {[%clk 0:02:50]} 15. Be3 {[%clk 0:02:33]}  Rac8 {[%clk 0:02:45]} 16. Rfd1 {[%clk 0:02:14]}  Nf6 {[%clk 0:02:26]} 17. dxc5 {[%clk 0:02:01]}  Bxc5 {[%clk 0:02:27]} 18. Bb3 {[%clk 0:02:01]}  h6 {[%clk 0:02:24]} 19. Nd4 {[%clk 0:01:58]}  Bg6 {[%clk 0:02:15]} 20. Nxe6 {[%clk 0:01:24]}  fxe6 {[%clk 0:02:13]} 21. Bxe6+ {[%clk 0:01:25]}  Kh7 {[%clk 0:02:12]} 22. Bxc8 {[%clk 0:01:24]}  Rxc8 {[%clk 0:02:08]} 23. Bxc5 {[%clk 0:01:25]}  Qxc5 {[%clk 0:02:09]} 24. Rd4 {[%clk 0:01:24]}  Re8 {[%clk 0:02:02]} 25. Qf3 {[%clk 0:01:16]}  b6 {[%clk 0:02:02]} 26. Rad1 {[%clk 0:01:13]}  Qc7 {[%clk 0:01:53]} 27. Rd6 {[%clk 0:00:58]}  Re5 {[%clk 0:01:35]} 28. Qf4 {[%clk 0:00:22]}  Qe7 {[%clk 0:01:33]} 29. Rc6 {[%clk 0:00:18]}  Nd5 {[%clk 0:00:48]} 30. Qd4 {[%clk 0:00:10]}  Qg5 {[%clk 0:00:26]} 31. g3 {[%clk 0:00:05]}  Nf6 {[%clk 0:00:22]} 32. Rc7 {[%clk 0:00:03]}  Re2 {[%clk 0:00:18]} 33. Qf4 {[%clk 0:00:02]}  Qxf4 {[%clk 0:00:11]} 34. gxf4 {[%clk 0:00:03]}  a5 {[%clk 0:00:10]} 35. Rb7 {[%clk 0:00:02]}  Rxb2 {[%clk 0:00:10]} 36. Rd6 {[%clk 0:00:03]}  Rb1+ {[%clk 0:00:08]} 37. Kh2 {[%clk 0:00:03]}  Be4 {[%clk 0:00:08]} 38. Rbxb6 {[%clk 0:00:03]}  Rh1+ {[%clk 0:00:08]} 39. Kg3 {[%clk 0:00:03]}  Rg1+ {[%clk 0:00:09]} 40. Kh2 {[%clk 0:00:02]}  Rg2+ {[%clk 0:00:04]} 41. Kh1 {[%clk 0:00:02]}  Nh5 {[%clk 0:00:05]} 42. Re6 {[%clk 0:00:02]}  Bf3 {[%clk 0:00:04]} 0-1


[Site "https://www.chess.com"]

[Event "Titled Tuesday Blitz October 04 Early 2022"]
[White "Tang, Andrew"]
[Black "Svane, Frederik"]
[WhiteFideId "2059630"]
[BlackFideId "12923044"]
[WhiteElo "2581"]
[BlackElo "2466"]
[Result "0-1"]
[Round "09"]
[TimeControl "180+1"]
[Date "2022.10.04"]
[WhiteClock "0:00:01"]
[BlackClock "0:00:07"]

1. d4 {[%clk 0:02:25]}  Nf6 {[%clk 0:02:25]} 2. Nf3 {[%clk 0:02:21]}  g6 {[%clk 0:02:25]} 3. Nbd2 {[%clk 0:02:21]}  Bg7 {[%clk 0:02:23]} 4. e4 {[%clk 0:02:21]}  O-O {[%clk 0:02:23]} 5. Bd3 {[%clk 0:02:21]}  Nc6 {[%clk 0:02:18]} 6. O-O {[%clk 0:02:05]}  d6 {[%clk 0:02:16]} 7. Re1 {[%clk 0:02:04]}  a5 {[%clk 0:02:09]} 8. c3 {[%clk 0:01:51]}  Nd7 {[%clk 0:02:08]} 9. Nc4 {[%clk 0:01:46]}  e5 {[%clk 0:02:04]} 10. Bg5 {[%clk 0:01:41]}  Qe8 {[%clk 0:02:00]} 11. Ne3 {[%clk 0:01:19]}  h6 {[%clk 0:01:52]} 12. Bh4 {[%clk 0:00:46]}  Nb6 {[%clk 0:01:43]} 13. Nd5 {[%clk 0:00:40]}  Nxd5 {[%clk 0:00:24]} 14. exd5 {[%clk 0:00:41]}  Nb8 {[%clk 0:00:25]} 15. dxe5 {[%clk 0:00:30]}  dxe5 {[%clk 0:00:26]} 16. Nxe5 {[%clk 0:00:18]}  Bxe5 {[%clk 0:00:27]} 17. f4 {[%clk 0:00:17]}  Bd4+ {[%clk 0:00:21]} 18. cxd4 {[%clk 0:00:17]}  Qd7 {[%clk 0:00:21]} 19. Be7 {[%clk 0:00:06]}  Re8 {[%clk 0:00:18]} 20. Bf6 {[%clk 0:00:07]}  b5 {[%clk 0:00:10]} 21. f5 {[%clk 0:00:07]}  Ra6 {[%clk 0:00:10]} 22. Be5 {[%clk 0:00:05]}  gxf5 {[%clk 0:00:08]} 23. Qh5 {[%clk 0:00:05]}  Rg6 {[%clk 0:00:08]} 24. Rf1 {[%clk 0:00:04]}  Qxd5 {[%clk 0:00:08]} 25. Rf3 {[%clk 0:00:04]}  Nc6 {[%clk 0:00:08]} 26. Bxf5 {[%clk 0:00:02]}  Nxe5 {[%clk 0:00:06]} 27. dxe5 {[%clk 0:00:01]}  Rxe5 {[%clk 0:00:07]} 0-1


[Site "https://www.chess.com"]

[Event "Titled Tuesday Blitz October 04 Early 2022"]
[White "Terry, Renato"]
[Black "Le, Tuan Minh"]
[WhiteFideId "3803457"]
[BlackFideId "12401153"]
[WhiteElo "2577"]
[BlackElo "2530"]
[Result "1/2-1/2"]
[Round "09"]
[TimeControl "180+1"]
[Date "2022.10.04"]
[WhiteClock "0:00:06"]
[BlackClock "0:00:09"]

1. Nf3 {[%clk 0:03:00]}  d5 {[%clk 0:02:51]} 2. e3 {[%clk 0:03:01]}  Nf6 {[%clk 0:02:50]} 3. c4 {[%clk 0:03:00]}  c6 {[%clk 0:02:50]} 4. Qc2 {[%clk 0:02:58]}  Bg4 {[%clk 0:02:49]} 5. b3 {[%clk 0:02:56]}  Nbd7 {[%clk 0:02:48]} 6. Bb2 {[%clk 0:02:56]}  e6 {[%clk 0:02:49]} 7. Be2 {[%clk 0:02:55]}  Bd6 {[%clk 0:02:49]} 8. O-O {[%clk 0:02:53]}  O-O {[%clk 0:02:49]} 9. d4 {[%clk 0:02:53]}  Ne4 {[%clk 0:02:48]} 10. Ba3 {[%clk 0:02:37]}  Bxa3 {[%clk 0:02:41]} 11. Nxa3 {[%clk 0:02:38]}  Bxf3 {[%clk 0:02:36]} 12. Bxf3 {[%clk 0:02:36]}  f5 {[%clk 0:02:37]} 13. b4 {[%clk 0:02:30]}  Qh4 {[%clk 0:02:30]} 14. g3 {[%clk 0:02:26]}  Qe7 {[%clk 0:01:51]} 15. Qb2 {[%clk 0:02:25]}  a5 {[%clk 0:01:51]} 16. b5 {[%clk 0:02:25]}  Qb4 {[%clk 0:01:51]} 17. Qxb4 {[%clk 0:01:36]}  axb4 {[%clk 0:01:50]} 18. Bxe4 {[%clk 0:01:37]}  Rxa3 {[%clk 0:01:30]} 19. Bf3 {[%clk 0:01:32]}  Nb6 {[%clk 0:01:13]} 20. bxc6 {[%clk 0:01:23]}  bxc6 {[%clk 0:01:14]} 21. cxd5 {[%clk 0:01:19]}  cxd5 {[%clk 0:01:15]} 22. Rfb1 {[%clk 0:01:19]}  Nc4 {[%clk 0:00:38]} 23. Rxb4 {[%clk 0:01:18]}  Nd2 {[%clk 0:00:39]} 24. Be2 {[%clk 0:01:14]}  Rfa8 {[%clk 0:00:39]} 25. Rb2 {[%clk 0:01:14]}  Ne4 {[%clk 0:00:39]} 26. Bd1 {[%clk 0:01:01]}  Nc3 {[%clk 0:00:37]} 27. Bb3 {[%clk 0:00:59]}  Kf7 {[%clk 0:00:34]} 28. Rc1 {[%clk 0:00:56]}  Nxa2 {[%clk 0:00:29]} 29. Bxa2 {[%clk 0:00:53]}  Rxa2 {[%clk 0:00:30]} 30. Rc7+ {[%clk 0:00:53]}  Kg6 {[%clk 0:00:23]} 31. Rbb7 {[%clk 0:00:54]}  Rg8 {[%clk 0:00:23]} 32. Rb6 {[%clk 0:00:39]}  Kf6 {[%clk 0:00:23]} 33. h4 {[%clk 0:00:39]}  Raa8 {[%clk 0:00:21]} 34. Rbb7 {[%clk 0:00:38]}  h5 {[%clk 0:00:18]} 35. Rf7+ {[%clk 0:00:34]}  Kg6 {[%clk 0:00:18]} 36. Kg2 {[%clk 0:00:35]}  Raf8 {[%clk 0:00:17]} 37. Rfe7 {[%clk 0:00:30]}  Kf6 {[%clk 0:00:17]} 38. Kf3 {[%clk 0:00:30]}  g5 {[%clk 0:00:11]} 39. hxg5+ {[%clk 0:00:31]}  Rxg5 {[%clk 0:00:11]} 40. Rh7 {[%clk 0:00:31]}  Rfg8 {[%clk 0:00:12]} 41. Rbf7+ {[%clk 0:00:28]}  Kg6 {[%clk 0:00:12]} 42. Re7 {[%clk 0:00:28]}  Kf6 {[%clk 0:00:13]} 43. Ref7+ {[%clk 0:00:27]}  Kg6 {[%clk 0:00:13]} 44. Ra7 {[%clk 0:00:28]}  Kf6 {[%clk 0:00:11]} 45. Rhf7+ {[%clk 0:00:26]}  Kg6 {[%clk 0:00:11]} 46. Rab7 {[%clk 0:00:22]}  Rg4 {[%clk 0:00:10]} 47. Rfe7 {[%clk 0:00:22]}  Kf6 {[%clk 0:00:10]} 48. Rf7+ {[%clk 0:00:22]}  Kg6 {[%clk 0:00:11]} 49. Rh7 {[%clk 0:00:22]}  Rg5 {[%clk 0:00:08]} 50. Kg2 {[%clk 0:00:17]}  Rg4 {[%clk 0:00:07]} 51. Kh3 {[%clk 0:00:17]}  Rg5 {[%clk 0:00:08]} 52. Rhe7 {[%clk 0:00:17]}  Kf6 {[%clk 0:00:08]} 53. Rf7+ {[%clk 0:00:17]}  Kg6 {[%clk 0:00:09]} 54. Rfe7 {[%clk 0:00:18]}  Kf6 {[%clk 0:00:09]} 55. Rbc7 {[%clk 0:00:17]}  R5g7 {[%clk 0:00:09]} 56. Rxg7 {[%clk 0:00:12]}  Rxg7 {[%clk 0:00:09]} 57. Rc8 {[%clk 0:00:10]}  Ra7 {[%clk 0:00:10]} 58. Rf8+ {[%clk 0:00:09]}  Kg7 {[%clk 0:00:10]} 59. Re8 {[%clk 0:00:09]}  Kf7 {[%clk 0:00:10]} 60. Rh8 {[%clk 0:00:09]}  Kg6 {[%clk 0:00:10]} 61. Kg2 {[%clk 0:00:04]}  Ra6 {[%clk 0:00:08]} 62. Kf3 {[%clk 0:00:04]}  Ra2 {[%clk 0:00:09]} 63. Rg8+ {[%clk 0:00:04]}  Kf6 {[%clk 0:00:09]} 64. Rc8 {[%clk 0:00:05]}  Rb2 {[%clk 0:00:09]} 65. Rf8+ {[%clk 0:00:05]}  Kg6 {[%clk 0:00:09]} 66. Ra8 {[%clk 0:00:06]}  Kf6 {[%clk 0:00:10]} 67. Rg8 {[%clk 0:00:06]}  Ra2 {[%clk 0:00:09]} 68. Kg2 {[%clk 0:00:05]}  Rb2 {[%clk 0:00:09]} 69. Rh8 {[%clk 0:00:06]}  Kg6 {[%clk 0:00:09]} 70. Ra8 {[%clk 0:00:07]}  Kf6 {[%clk 0:00:09]} 71. Ra7 {[%clk 0:00:07]}  Rc2 {[%clk 0:00:09]} 72. Rd7 {[%clk 0:00:06]}  Rb2 {[%clk 0:00:09]} 73. Rd8 {[%clk 0:00:06]}  Ra2 {[%clk 0:00:09]} 74. Rb8 {[%clk 0:00:07]}  Rc2 {[%clk 0:00:09]} 75. Rh8 {[%clk 0:00:06]}  Kg6 {[%clk 0:00:09]} 76. Kf1 {[%clk 0:00:05]}  Ra2 {[%clk 0:00:08]} 77. Ke1 {[%clk 0:00:05]}  Kg5 {[%clk 0:00:07]} 78. Rg8+ {[%clk 0:00:05]}  Kf6 {[%clk 0:00:08]} 79. Kf1 {[%clk 0:00:05]}  Rb2 {[%clk 0:00:08]} 80. Kg1 {[%clk 0:00:05]}  Ra2 {[%clk 0:00:09]} 81. Kg2 {[%clk 0:00:06]}  Rb2 {[%clk 0:00:09]} 82. Kf3 {[%clk 0:00:06]}  Ra2 {[%clk 0:00:09]} 1/2-1/2


[Site "https://www.chess.com"]

[Event "Titled Tuesday Blitz October 04 Early 2022"]
[White "Tsaruk, Maksim"]
[Black "Wirig, Anthony"]
[WhiteFideId "13511173"]
[BlackFideId "615013"]
[WhiteElo "2273"]
[BlackElo "2474"]
[Result "0-1"]
[Round "09"]
[TimeControl "180+1"]
[Date "2022.10.04"]
[WhiteClock "0:00:04"]
[BlackClock "0:00:04"]

1. e4 {[%clk 0:02:43]}  c5 {[%clk 0:02:59]} 2. Nf3 {[%clk 0:02:44]}  e6 {[%clk 0:02:58]} 3. d4 {[%clk 0:02:44]}  cxd4 {[%clk 0:02:59]} 4. Nxd4 {[%clk 0:02:45]}  Nf6 {[%clk 0:02:59]} 5. Nc3 {[%clk 0:02:45]}  Nc6 {[%clk 0:03:00]} 6. Ndb5 {[%clk 0:02:44]}  Bc5 {[%clk 0:02:59]} 7. Nd6+ {[%clk 0:02:42]}  Ke7 {[%clk 0:02:59]} 8. Bf4 {[%clk 0:02:42]}  e5 {[%clk 0:02:58]} 9. Nf5+ {[%clk 0:02:43]}  Kf8 {[%clk 0:02:59]} 10. Bg5 {[%clk 0:02:21]}  d6 {[%clk 0:02:57]} 11. Bxf6 {[%clk 0:02:18]}  Qxf6 {[%clk 0:02:55]} 12. Nd5 {[%clk 0:02:18]}  Qd8 {[%clk 0:02:46]} 13. c3 {[%clk 0:02:15]}  g6 {[%clk 0:02:39]} 14. Nfe3 {[%clk 0:02:13]}  Be6 {[%clk 0:02:34]} 15. Be2 {[%clk 0:02:12]}  Ne7 {[%clk 0:02:00]} 16. h4 {[%clk 0:02:09]}  h5 {[%clk 0:01:44]} 17. Nxe7 {[%clk 0:02:08]}  Qxe7 {[%clk 0:01:33]} 18. Nd5 {[%clk 0:02:09]}  Bxd5 {[%clk 0:01:24]} 19. Qxd5 {[%clk 0:02:08]}  Kg7 {[%clk 0:01:22]} 20. Rh3 {[%clk 0:02:05]}  Rhf8 {[%clk 0:01:04]} 21. Bc4 {[%clk 0:01:36]}  Qf6 {[%clk 0:00:38]} 22. Rf3 {[%clk 0:01:36]}  Qxh4 {[%clk 0:00:38]} 23. Rxf7+ {[%clk 0:01:09]}  Rxf7 {[%clk 0:00:38]} 24. Qxf7+ {[%clk 0:01:09]}  Kh6 {[%clk 0:00:39]} 25. O-O-O {[%clk 0:00:27]}  a5 {[%clk 0:00:13]} 26. Bd5 {[%clk 0:00:21]}  Qg5+ {[%clk 0:00:06]} 27. Kb1 {[%clk 0:00:18]}  Qxg2 {[%clk 0:00:07]} 28. f4 {[%clk 0:00:13]}  Qf3 {[%clk 0:00:03]} 29. Rc1 {[%clk 0:00:05]}  Qxf4 {[%clk 0:00:03]} 30. Qxb7 {[%clk 0:00:05]}  Rf8 {[%clk 0:00:03]} 31. Qe7 {[%clk 0:00:04]}  Qf6 {[%clk 0:00:01]} 32. Qd7 {[%clk 0:00:03]}  h4 {[%clk 0:00:02]} 33. Qg4 {[%clk 0:00:03]}  Qf4 {[%clk 0:00:03]} 34. Qg2 {[%clk 0:00:03]}  Qg3 {[%clk 0:00:03]} 35. Qe2 {[%clk 0:00:03]}  Rf4 {[%clk 0:00:04]} 36. Be6 {[%clk 0:00:03]}  Rf2 {[%clk 0:00:04]} 37. Qe1 {[%clk 0:00:02]}  Qf4 {[%clk 0:00:04]} 38. Rd1 {[%clk 0:00:02]}  Rh2 {[%clk 0:00:04]} 39. Ka1 {[%clk 0:00:01]}  Be3 {[%clk 0:00:04]} 40. Bd5 {[%clk 0:00:02]}  Bf2 {[%clk 0:00:04]} 41. Qf1 {[%clk 0:00:02]}  Bg3 {[%clk 0:00:05]} 42. Qd3 {[%clk 0:00:03]}  Qf2 {[%clk 0:00:04]} 43. a4 {[%clk 0:00:04]}  Qxb2# {[%clk 0:00:04]} 0-1


[Site "https://www.chess.com"]

[Event "Titled Tuesday Blitz October 04 Early 2022"]
[White "Urazayev, Arystanbek"]
[Black "Makhnev, Denis"]
[WhiteFideId "13709810"]
[BlackFideId "13707647"]
[WhiteElo "2441"]
[BlackElo "2486"]
[Result "0-1"]
[Round "09"]
[TimeControl "180+1"]
[Date "2022.10.04"]
[WhiteClock "0:00:16"]
[BlackClock "0:01:01"]

1. e4 {[%clk 0:03:00]}  c6 {[%clk 0:03:00]} 2. Nf3 {[%clk 0:02:56]}  d5 {[%clk 0:03:01]} 3. exd5 {[%clk 0:02:56]}  cxd5 {[%clk 0:03:01]} 4. d4 {[%clk 0:02:57]}  Nc6 {[%clk 0:03:01]} 5. c3 {[%clk 0:02:58]}  Qc7 {[%clk 0:03:00]} 6. c4 {[%clk 0:02:54]}  e6 {[%clk 0:02:58]} 7. Nc3 {[%clk 0:02:53]}  Bb4 {[%clk 0:02:58]} 8. cxd5 {[%clk 0:02:46]}  exd5 {[%clk 0:02:57]} 9. Bd3 {[%clk 0:02:45]}  Nf6 {[%clk 0:02:43]} 10. O-O {[%clk 0:02:42]}  Bxc3 {[%clk 0:02:41]} 11. bxc3 {[%clk 0:02:40]}  O-O {[%clk 0:02:42]} 12. Re1 {[%clk 0:02:30]}  h6 {[%clk 0:02:40]} 13. Ba3 {[%clk 0:02:23]}  Rd8 {[%clk 0:02:39]} 14. Ne5 {[%clk 0:02:23]}  Be6 {[%clk 0:02:39]} 15. Rc1 {[%clk 0:02:10]}  Rac8 {[%clk 0:02:36]} 16. h3 {[%clk 0:01:56]}  Ne4 {[%clk 0:02:31]} 17. Bxe4 {[%clk 0:01:49]}  dxe4 {[%clk 0:02:31]} 18. Rxe4 {[%clk 0:01:47]}  Nxe5 {[%clk 0:02:30]} 19. Rxe5 {[%clk 0:01:47]}  Qxe5 {[%clk 0:02:30]} 20. dxe5 {[%clk 0:01:45]}  Rxd1+ {[%clk 0:02:31]} 21. Rxd1 {[%clk 0:01:46]}  Rxc3 {[%clk 0:02:31]} 22. Bb4 {[%clk 0:01:38]}  Rc2 {[%clk 0:02:20]} 23. Rd8+ {[%clk 0:01:31]}  Kh7 {[%clk 0:02:19]} 24. a3 {[%clk 0:01:31]}  b6 {[%clk 0:02:19]} 25. g4 {[%clk 0:01:28]}  h5 {[%clk 0:02:11]} 26. f3 {[%clk 0:01:21]}  a5 {[%clk 0:02:10]} 27. Be7 {[%clk 0:01:20]}  Re2 {[%clk 0:01:43]} 28. Bd6 {[%clk 0:01:10]}  Bd5 {[%clk 0:01:18]} 29. gxh5 {[%clk 0:00:20]}  Bxf3 {[%clk 0:01:17]} 30. Rb8 {[%clk 0:00:16]}  Rg2+ {[%clk 0:01:01]} 0-1


[Site "https://www.chess.com"]

[Event "Titled Tuesday Blitz October 04 Early 2022"]
[White "Vaibhav Jayant Raut"]
[Black "Zhigalko, Sergei"]
[WhiteFideId "5089034"]
[BlackFideId "13502956"]
[WhiteElo "2147"]
[BlackElo "2662"]
[Result "0-1"]
[Round "09"]
[TimeControl "180+1"]
[Date "2022.10.04"]
[WhiteClock "0:00:10"]
[BlackClock "0:00:05"]

1. d4 {[%clk 0:03:00]}  Nf6 {[%clk 0:02:58]} 2. Bf4 {[%clk 0:03:01]}  e6 {[%clk 0:02:57]} 3. e3 {[%clk 0:03:00]}  d5 {[%clk 0:02:56]} 4. Nf3 {[%clk 0:03:01]}  Bd6 {[%clk 0:02:57]} 5. Nbd2 {[%clk 0:02:59]}  O-O {[%clk 0:02:57]} 6. Bd3 {[%clk 0:02:57]}  b6 {[%clk 0:02:57]} 7. O-O {[%clk 0:02:54]}  Bxf4 {[%clk 0:02:56]} 8. exf4 {[%clk 0:02:54]}  Ba6 {[%clk 0:02:57]} 9. Qe2 {[%clk 0:02:49]}  Bxd3 {[%clk 0:02:56]} 10. Qxd3 {[%clk 0:02:50]}  c5 {[%clk 0:02:56]} 11. c3 {[%clk 0:02:47]}  Nc6 {[%clk 0:02:56]} 12. f5 {[%clk 0:02:10]}  exf5 {[%clk 0:02:47]} 13. Qxf5 {[%clk 0:02:08]}  cxd4 {[%clk 0:02:47]} 14. Nxd4 {[%clk 0:02:05]}  Nxd4 {[%clk 0:02:46]} 15. cxd4 {[%clk 0:02:06]}  Qd6 {[%clk 0:02:39]} 16. a3 {[%clk 0:02:03]}  Rfe8 {[%clk 0:02:34]} 17. Rfe1 {[%clk 0:02:01]}  g6 {[%clk 0:02:32]} 18. Qd3 {[%clk 0:02:00]}  Rac8 {[%clk 0:02:19]} 19. h3 {[%clk 0:01:52]}  Kg7 {[%clk 0:02:14]} 20. Rac1 {[%clk 0:01:51]}  Rxe1+ {[%clk 0:01:45]} 21. Rxe1 {[%clk 0:01:48]}  Qc7 {[%clk 0:01:46]} 22. Nf3 {[%clk 0:01:10]}  Ne4 {[%clk 0:01:45]} 23. Ne5 {[%clk 0:00:16]}  Qc2 {[%clk 0:01:23]} 24. Qf3 {[%clk 0:00:15]}  Rc7 {[%clk 0:01:12]} 25. Qf4 {[%clk 0:00:06]}  h5 {[%clk 0:00:47]} 26. Nf3 {[%clk 0:00:04]}  Qxf2+ {[%clk 0:00:45]} 27. Kh1 {[%clk 0:00:04]}  Rc2 {[%clk 0:00:34]} 28. Qe5+ {[%clk 0:00:03]}  Kh7 {[%clk 0:00:32]} 29. Rg1 {[%clk 0:00:02]}  Ng3+ {[%clk 0:00:19]} 30. Kh2 {[%clk 0:00:02]}  Qxf3 {[%clk 0:00:16]} 31. Qxg3 {[%clk 0:00:02]}  Qxg3+ {[%clk 0:00:16]} 32. Kxg3 {[%clk 0:00:03]}  Rxb2 {[%clk 0:00:17]} 33. Rc1 {[%clk 0:00:03]}  Rb3+ {[%clk 0:00:15]} 34. Kf4 {[%clk 0:00:03]}  Rxa3 {[%clk 0:00:15]} 35. Ke5 {[%clk 0:00:03]}  Ra2 {[%clk 0:00:11]} 36. Kxd5 {[%clk 0:00:03]}  Rxg2 {[%clk 0:00:11]} 37. Rd1 {[%clk 0:00:03]}  Kg7 {[%clk 0:00:09]} 38. Kc6 {[%clk 0:00:04]}  Rc2+ {[%clk 0:00:09]} 39. Kb7 {[%clk 0:00:03]}  Kf6 {[%clk 0:00:07]} 40. d5 {[%clk 0:00:04]}  Ke7 {[%clk 0:00:07]} 41. Kxa7 {[%clk 0:00:04]}  b5 {[%clk 0:00:07]} 42. Kb6 {[%clk 0:00:04]}  b4 {[%clk 0:00:07]} 43. Rb1 {[%clk 0:00:04]}  Kd6 {[%clk 0:00:05]} 44. Rxb4 {[%clk 0:00:04]}  Kxd5 {[%clk 0:00:05]} 45. Rf4 {[%clk 0:00:04]}  Ke6 {[%clk 0:00:05]} 46. Rf3 {[%clk 0:00:05]}  f5 {[%clk 0:00:05]} 47. Kb5 {[%clk 0:00:05]}  g5 {[%clk 0:00:04]} 48. Kb4 {[%clk 0:00:06]}  g4 {[%clk 0:00:04]} 49. Re3+ {[%clk 0:00:06]}  Kf6 {[%clk 0:00:04]} 50. hxg4 {[%clk 0:00:07]}  hxg4 {[%clk 0:00:05]} 51. Kb3 {[%clk 0:00:08]}  Rc7 {[%clk 0:00:05]} 52. Re1 {[%clk 0:00:08]}  f4 {[%clk 0:00:05]} 53. Rg1 {[%clk 0:00:08]}  g3 {[%clk 0:00:05]} 54. Kb2 {[%clk 0:00:09]}  Kf5 {[%clk 0:00:05]} 55. Rg2 {[%clk 0:00:10]}  Kg4 {[%clk 0:00:05]} 56. Rc2 {[%clk 0:00:10]}  Rxc2+ {[%clk 0:00:05]} 0-1


[Site "https://www.chess.com"]